[Event "December 5 Early 2023"]
[Site "https://www.chess.com"]
[Date "2023.12.05"]
[Round "1"]
[White "Reinecke, Katharina"]
[Black "Grutter, Tim"]
[Result "0-1"]
[Board "242"]
[TimeControl "180+1"]
[WhiteFideId "12929727"]
[BlackFideId "1057472"]
[WhiteElo "2013"]
[BlackElo "2542"]
[WhiteTeam "GER"]
[BlackTeam "NED"]
[WhiteClock "0:00:08"]
[BlackClock "0:00:15"]

1. d4 {[%clk 0:02:59]}  d6 {[%clk 0:02:57]} 2. c4 {[%clk 0:02:56]}  e5 {[%clk 0:02:54]} 3. dxe5 {[%clk 0:02:51]}  dxe5 {[%clk 0:02:55]} 4. Qxd8+ {[%clk 0:02:50]}  Kxd8 {[%clk 0:02:56]} 5. Nc3 {[%clk 0:02:30]}  c6 {[%clk 0:02:47]} 6. e4 {[%clk 0:02:20]}  Kc7 {[%clk 0:02:31]} 7. g3 {[%clk 0:02:10]}  Be6 {[%clk 0:02:21]} 8. b3 {[%clk 0:02:04]}  Nf6 {[%clk 0:02:20]} 9. f3 {[%clk 0:01:25]}  Na6 {[%clk 0:01:53]} 10. Bb2 {[%clk 0:01:10]}  Bc5 {[%clk 0:01:29]} 11. O-O-O {[%clk 0:00:59]}  Rhd8 {[%clk 0:01:25]} 12. Bd3 {[%clk 0:00:44]}  Nb4 {[%clk 0:01:17]} 13. Bc2 {[%clk 0:00:37]}  Rxd1+ {[%clk 0:00:51]} 14. Nxd1 {[%clk 0:00:36]}  Nxa2+ {[%clk 0:00:49]} 15. Kb1 {[%clk 0:00:33]}  Nb4 {[%clk 0:00:48]} 16. Bxe5+ {[%clk 0:00:33]}  Kb6 {[%clk 0:00:42]} 17. Ne2 {[%clk 0:00:28]}  Rd8 {[%clk 0:00:42]} 18. Ndc3 {[%clk 0:00:23]}  Be7 {[%clk 0:00:20]} 19. Na4+ {[%clk 0:00:18]}  Ka6 {[%clk 0:00:20]} 20. Nec3 {[%clk 0:00:17]}  b5 {[%clk 0:00:19]} 21. Nb2 {[%clk 0:00:16]}  Rd2 {[%clk 0:00:16]} 22. Rc1 {[%clk 0:00:15]}  Rxh2 {[%clk 0:00:16]} 23. Nd3 {[%clk 0:00:15]}  Nxc2 {[%clk 0:00:11]} 24. Rxc2 {[%clk 0:00:14]}  Rxc2 {[%clk 0:00:12]} 25. Kxc2 {[%clk 0:00:14]}  bxc4 {[%clk 0:00:13]} 26. bxc4 {[%clk 0:00:13]}  Bxc4 {[%clk 0:00:14]} 27. Nb4+ {[%clk 0:00:13]}  Bxb4 {[%clk 0:00:13]} 28. Bxf6 {[%clk 0:00:09]}  gxf6 {[%clk 0:00:14]} 29. f4 {[%clk 0:00:09]}  Bxc3 {[%clk 0:00:13]} 30. Kxc3 {[%clk 0:00:09]}  Be2 {[%clk 0:00:13]} 31. Kd4 {[%clk 0:00:09]}  Kb5 {[%clk 0:00:13]} 32. e5 {[%clk 0:00:09]}  fxe5+ {[%clk 0:00:14]} 33. Kxe5 {[%clk 0:00:09]}  a5 {[%clk 0:00:14]} 34. Kf6 {[%clk 0:00:09]}  a4 {[%clk 0:00:15]} 35. Kxf7 {[%clk 0:00:09]}  a3 {[%clk 0:00:16]} 36. f5 {[%clk 0:00:09]}  a2 {[%clk 0:00:16]} 37. f6 {[%clk 0:00:10]}  a1=Q {[%clk 0:00:17]} 38. Kg7 {[%clk 0:00:10]}  Qe5 {[%clk 0:00:15]} 39. Kxh7 {[%clk 0:00:10]}  Qxf6 {[%clk 0:00:14]} 40. g4 {[%clk 0:00:11]}  Bd3+ {[%clk 0:00:14]} 41. Kg8 {[%clk 0:00:10]}  Qe7 {[%clk 0:00:14]} 42. g5 {[%clk 0:00:09]}  Bg6 {[%clk 0:00:14]} 43. Kh8 {[%clk 0:00:08]}  Qh7# {[%clk 0:00:15]} 0-1

[Event "December 5 Early 2023"]
[Site "https://www.chess.com"]
[Date "2023.12.05"]
[Round "1"]
[White "Vargas, Mauricio"]
[Black "Rangel, Daniel"]
[Result "0-1"]
[Board "246"]
[TimeControl "180+1"]
[WhiteFideId "4404572"]
[BlackFideId "2124475"]
[WhiteElo "1843"]
[BlackElo "2535"]
[WhiteTeam "COL"]
[BlackTeam "BRA"]
[WhiteClock "0:00:00"]
[BlackClock "0:01:44"]

1. e4 {[%clk 0:02:59]}  c5 {[%clk 0:02:57]} 2. Nc3 {[%clk 0:02:59]}  g6 {[%clk 0:02:55]} 3. f4 {[%clk 0:03:00]}  Bg7 {[%clk 0:02:55]} 4. Nf3 {[%clk 0:03:00]}  e6 {[%clk 0:02:53]} 5. g4 {[%clk 0:02:58]}  d5 {[%clk 0:02:43]} 6. e5 {[%clk 0:02:57]}  h5 {[%clk 0:02:41]} 7. g5 {[%clk 0:02:54]}  Ne7 {[%clk 0:02:30]} 8. Nb5 {[%clk 0:02:52]}  Nf5 {[%clk 0:02:27]} 9. d3 {[%clk 0:02:41]}  a6 {[%clk 0:02:25]} 10. Nc3 {[%clk 0:02:40]}  O-O {[%clk 0:02:24]} 11. Bh3 {[%clk 0:02:34]}  Nc6 {[%clk 0:02:18]} 12. O-O {[%clk 0:02:33]}  b5 {[%clk 0:02:17]} 13. Ne2 {[%clk 0:02:29]}  Bb7 {[%clk 0:02:15]} 14. c3 {[%clk 0:02:23]}  d4 {[%clk 0:02:11]} 15. Ng3 {[%clk 0:01:40]}  dxc3 {[%clk 0:02:04]} 16. bxc3 {[%clk 0:01:38]}  b4 {[%clk 0:02:04]} 17. Bb2 {[%clk 0:01:33]}  bxc3 {[%clk 0:02:02]} 18. Bxc3 {[%clk 0:01:33]}  Ne3 {[%clk 0:01:55]} 19. Qd2 {[%clk 0:01:25]}  Nxf1 {[%clk 0:01:54]} 20. Rxf1 {[%clk 0:01:24]}  Nd4 {[%clk 0:01:43]} 21. Bxd4 {[%clk 0:00:00]}  cxd4 {[%clk 0:01:44]} 0-1

[Event "December 5 Early 2023"]
[Site "https://www.chess.com"]
[Date "2023.12.05"]
[Round "2"]
[White "Antunez Soler, Luis"]
[Black "Firouzja, Alireza"]
[Result "0-1"]
[Board "3"]
[TimeControl "180+1"]
[WhiteFideId "3513335"]
[BlackFideId "12573981"]
[WhiteElo "2650"]
[BlackElo "3168"]
[WhiteTeam "CUB"]
[BlackTeam "FRA"]
[WhiteClock "0:00:56"]
[BlackClock "0:02:23"]

1. e4 {[%clk 0:02:34]}  c5 {[%clk 0:02:59]} 2. Nf3 {[%clk 0:02:33]}  d6 {[%clk 0:03:00]} 3. Bb5+ {[%clk 0:02:33]}  Nd7 {[%clk 0:03:00]} 4. d4 {[%clk 0:02:33]}  cxd4 {[%clk 0:02:59]} 5. Qxd4 {[%clk 0:02:34]}  a6 {[%clk 0:02:59]} 6. Bxd7+ {[%clk 0:02:35]}  Bxd7 {[%clk 0:03:00]} 7. Bg5 {[%clk 0:02:35]}  f6 {[%clk 0:02:56]} 8. Be3 {[%clk 0:02:34]}  e6 {[%clk 0:02:56]} 9. Nc3 {[%clk 0:02:33]}  Ne7 {[%clk 0:02:54]} 10. Qxd6 {[%clk 0:02:31]}  Nd5 {[%clk 0:02:52]} 11. Qg3 {[%clk 0:02:31]}  Nxc3 {[%clk 0:02:48]} 12. bxc3 {[%clk 0:02:29]}  e5 {[%clk 0:02:47]} 13. O-O {[%clk 0:02:25]}  Qc7 {[%clk 0:02:47]} 14. Nh4 {[%clk 0:02:16]}  Be6 {[%clk 0:02:36]} 15. f4 {[%clk 0:02:02]}  Bd6 {[%clk 0:02:34]} 16. Nf5 {[%clk 0:01:28]}  Bxf5 {[%clk 0:02:33]} 17. exf5 {[%clk 0:01:28]}  O-O {[%clk 0:02:33]} 18. Rad1 {[%clk 0:01:23]}  Rad8 {[%clk 0:02:27]} 19. Rd5 {[%clk 0:00:56]}  exf4 {[%clk 0:02:23]} 0-1

[Event "December 5 Early 2023"]
[Site "https://www.chess.com"]
[Date "2023.12.05"]
[Round "2"]
[White "Bortnyk, Olexandr"]
[Black "Gontcharov, Vladislav"]
[Result "1-0"]
[Board "5"]
[TimeControl "180+1"]
[WhiteFideId "14120828"]
[BlackFideId "4123492"]
[WhiteElo "3077"]
[BlackElo "2648"]
[WhiteTeam "UKR"]
[BlackTeam "RUS"]
[WhiteClock "0:01:31"]
[BlackClock "0:00:26"]

1. e4 {[%clk 0:03:00]}  e6 {[%clk 0:02:59]} 2. Nf3 {[%clk 0:02:58]}  d5 {[%clk 0:02:59]} 3. e5 {[%clk 0:02:59]}  c5 {[%clk 0:02:59]} 4. d4 {[%clk 0:03:00]}  Nc6 {[%clk 0:02:57]} 5. Bd3 {[%clk 0:02:57]}  cxd4 {[%clk 0:02:38]} 6. O-O {[%clk 0:02:56]}  Nh6 {[%clk 0:02:28]} 7. Re1 {[%clk 0:02:51]}  Nf5 {[%clk 0:02:11]} 8. Bxf5 {[%clk 0:02:47]}  exf5 {[%clk 0:02:11]} 9. Nxd4 {[%clk 0:02:48]}  Be6 {[%clk 0:02:11]} 10. Nc3 {[%clk 0:02:43]}  Be7 {[%clk 0:02:09]} 11. Nxe6 {[%clk 0:02:39]}  fxe6 {[%clk 0:02:08]} 12. Qh5+ {[%clk 0:02:40]}  g6 {[%clk 0:02:07]} 13. Qh6 {[%clk 0:02:41]}  Kf7 {[%clk 0:02:07]} 14. Nb5 {[%clk 0:02:32]}  a6 {[%clk 0:01:58]} 15. Nd6+ {[%clk 0:02:29]}  Bxd6 {[%clk 0:01:57]} 16. exd6 {[%clk 0:02:29]}  Qxd6 {[%clk 0:01:58]} 17. Bg5 {[%clk 0:02:26]}  Qf8 {[%clk 0:01:34]} 18. Qh3 {[%clk 0:02:24]}  h6 {[%clk 0:01:33]} 19. Bd2 {[%clk 0:02:18]}  Rc8 {[%clk 0:01:20]} 20. Rad1 {[%clk 0:02:14]}  Qg7 {[%clk 0:01:16]} 21. c4 {[%clk 0:02:12]}  d4 {[%clk 0:01:16]} 22. Qb3 {[%clk 0:02:09]}  Kg8 {[%clk 0:01:08]} 23. Rxe6 {[%clk 0:02:07]}  Kh7 {[%clk 0:01:08]} 24. Rde1 {[%clk 0:01:58]}  Rhf8 {[%clk 0:01:06]} 25. Bxh6 {[%clk 0:01:42]}  Qxh6 {[%clk 0:00:54]} 26. Qxb7+ {[%clk 0:01:43]}  Qg7 {[%clk 0:00:47]} 27. Re7 {[%clk 0:01:43]}  Nxe7 {[%clk 0:00:47]} 28. Rxe7 {[%clk 0:01:44]}  Qxe7 {[%clk 0:00:48]} 29. Qxe7+ {[%clk 0:01:45]}  Kh6 {[%clk 0:00:45]} 30. Qh4+ {[%clk 0:01:44]}  Kg7 {[%clk 0:00:45]} 31. Qxd4+ {[%clk 0:01:45]}  Kh7 {[%clk 0:00:44]} 32. Qa7+ {[%clk 0:01:42]}  Kh6 {[%clk 0:00:44]} 33. Qxa6 {[%clk 0:01:42]}  Rfe8 {[%clk 0:00:43]} 34. g3 {[%clk 0:01:39]}  Rc5 {[%clk 0:00:37]} 35. b4 {[%clk 0:01:38]}  Rce5 {[%clk 0:00:36]} 36. c5 {[%clk 0:01:38]}  Re1+ {[%clk 0:00:36]} 37. Kg2 {[%clk 0:01:38]}  Rc1 {[%clk 0:00:35]} 38. Qf6 {[%clk 0:01:33]}  Rc2 {[%clk 0:00:31]} 39. c6 {[%clk 0:01:31]}  Ree2 {[%clk 0:00:26]} 40. Qh8+ {[%clk 0:01:31]} 1-0

[Event "December 5 Early 2023"]
[Site "https://www.chess.com"]
[Date "2023.12.05"]
[Round "2"]
[White "Lamaze, Simon"]
[Black "So, Wesley"]
[Result "0-1"]
[Board "8"]
[TimeControl "180+1"]
[WhiteFideId "36069264"]
[BlackFideId "5202213"]
[WhiteElo "2644"]
[BlackElo "3056"]
[WhiteTeam "FRA"]
[BlackTeam "USA"]
[WhiteClock "0:00:28"]
[BlackClock "0:00:25"]

1. c4 {[%clk 0:03:00]}  f5 {[%clk 0:02:51]} 2. g3 {[%clk 0:02:59]}  e5 {[%clk 0:02:49]} 3. Bg2 {[%clk 0:02:58]}  Nf6 {[%clk 0:02:49]} 4. Nc3 {[%clk 0:02:58]}  Bb4 {[%clk 0:02:48]} 5. Nd5 {[%clk 0:02:56]}  Nxd5 {[%clk 0:02:47]} 6. cxd5 {[%clk 0:02:57]}  O-O {[%clk 0:02:47]} 7. a3 {[%clk 0:02:54]}  Be7 {[%clk 0:02:37]} 8. e3 {[%clk 0:02:54]}  c5 {[%clk 0:02:29]} 9. dxc6 {[%clk 0:02:47]}  dxc6 {[%clk 0:02:30]} 10. Ne2 {[%clk 0:02:47]}  Be6 {[%clk 0:02:26]} 11. O-O {[%clk 0:02:46]}  Nd7 {[%clk 0:02:27]} 12. b4 {[%clk 0:02:22]}  a5 {[%clk 0:02:24]} 13. bxa5 {[%clk 0:02:22]}  Qxa5 {[%clk 0:02:14]} 14. Bb2 {[%clk 0:02:22]}  Qc7 {[%clk 0:02:07]} 15. Qc2 {[%clk 0:02:12]}  g6 {[%clk 0:01:58]} 16. d4 {[%clk 0:02:11]}  e4 {[%clk 0:01:51]} 17. Nf4 {[%clk 0:02:11]}  Qd6 {[%clk 0:01:40]} 18. Nxe6 {[%clk 0:02:10]}  Qxe6 {[%clk 0:01:41]} 19. Rfd1 {[%clk 0:02:10]}  Nf6 {[%clk 0:01:38]} 20. d5 {[%clk 0:02:04]}  Nxd5 {[%clk 0:01:36]} 21. Bf1 {[%clk 0:02:04]}  Bf6 {[%clk 0:01:28]} 22. Bc4 {[%clk 0:02:04]}  Kg7 {[%clk 0:01:23]} 23. Rab1 {[%clk 0:01:56]}  Rf7 {[%clk 0:01:14]} 24. Qb3 {[%clk 0:01:50]}  Bxb2 {[%clk 0:01:13]} 25. Bxd5 {[%clk 0:01:42]}  cxd5 {[%clk 0:01:12]} 26. Qxb2+ {[%clk 0:01:41]}  Kh6 {[%clk 0:01:11]} 27. Rbc1 {[%clk 0:01:37]}  Rd7 {[%clk 0:01:06]} 28. Rc5 {[%clk 0:01:32]}  Ra6 {[%clk 0:00:58]} 29. Rb5 {[%clk 0:01:30]}  Qc6 {[%clk 0:00:51]} 30. Rc1 {[%clk 0:01:28]}  Qd6 {[%clk 0:00:51]} 31. Rb4 {[%clk 0:01:21]}  Rc6 {[%clk 0:00:48]} 32. Rd1 {[%clk 0:01:22]}  Qc7 {[%clk 0:00:41]} 33. Kg2 {[%clk 0:01:19]}  Rc2 {[%clk 0:00:40]} 34. Qf6 {[%clk 0:01:17]}  Qd8 {[%clk 0:00:31]} 35. Qxd8 {[%clk 0:01:12]}  Rxd8 {[%clk 0:00:32]} 36. Rxb7 {[%clk 0:01:13]}  Ra2 {[%clk 0:00:30]} 37. Rc1 {[%clk 0:01:10]}  d4 {[%clk 0:00:27]} 38. Rcc7 {[%clk 0:01:00]}  dxe3 {[%clk 0:00:26]} 39. Rxh7+ {[%clk 0:00:41]}  Kg5 {[%clk 0:00:26]} 40. Rb6 {[%clk 0:00:31]}  Rxf2+ {[%clk 0:00:24]} 41. Kh3 {[%clk 0:00:28]}  Rdd2 {[%clk 0:00:25]} 0-1

[Event "December 5 Early 2023"]
[Site "https://www.chess.com"]
[Date "2023.12.05"]
[Round "2"]
[White "Aronian, Levon"]
[Black "Jain Kashish Manoj"]
[Result "1-0"]
[Board "9"]
[TimeControl "180+1"]
[WhiteFideId "13300474"]
[BlackFideId "35081098"]
[WhiteElo "3054"]
[BlackElo "2642"]
[WhiteTeam "USA"]
[BlackTeam "IND"]
[WhiteClock "0:01:38"]
[BlackClock "0:00:01"]

1. e4 {[%clk 0:03:00]}  c5 {[%clk 0:03:00]} 2. Nf3 {[%clk 0:03:00]}  a6 {[%clk 0:02:59]} 3. c3 {[%clk 0:02:55]}  e6 {[%clk 0:02:59]} 4. d4 {[%clk 0:02:55]}  d5 {[%clk 0:02:58]} 5. e5 {[%clk 0:02:55]}  Bd7 {[%clk 0:02:58]} 6. a3 {[%clk 0:02:49]}  c4 {[%clk 0:02:53]} 7. g3 {[%clk 0:02:40]}  Qa5 {[%clk 0:02:44]} 8. Bf4 {[%clk 0:02:37]}  Ba4 {[%clk 0:02:43]} 9. Qc1 {[%clk 0:02:37]}  Nc6 {[%clk 0:02:32]} 10. h4 {[%clk 0:02:37]}  O-O-O {[%clk 0:02:31]} 11. Bh3 {[%clk 0:02:35]}  Kb8 {[%clk 0:02:30]} 12. O-O {[%clk 0:02:34]}  h6 {[%clk 0:02:29]} 13. h5 {[%clk 0:02:32]}  Ka7 {[%clk 0:02:24]} 14. Nbd2 {[%clk 0:02:31]}  Qc7 {[%clk 0:02:21]} 15. Kg2 {[%clk 0:02:30]}  Nge7 {[%clk 0:02:20]} 16. Rh1 {[%clk 0:02:24]}  Nc8 {[%clk 0:02:17]} 17. Nf1 {[%clk 0:02:18]}  Na5 {[%clk 0:02:12]} 18. N3d2 {[%clk 0:02:16]}  Be7 {[%clk 0:01:58]} 19. Bg4 {[%clk 0:02:15]}  Rdf8 {[%clk 0:01:57]} 20. Ne3 {[%clk 0:02:14]}  Qd8 {[%clk 0:01:52]} 21. Bd1 {[%clk 0:02:12]}  Qe8 {[%clk 0:01:48]} 22. Bc2 {[%clk 0:02:05]}  Bxc2 {[%clk 0:01:42]} 23. Qxc2 {[%clk 0:02:05]}  Nb6 {[%clk 0:01:42]} 24. Qd1 {[%clk 0:02:04]}  Qa4 {[%clk 0:01:27]} 25. Qe2 {[%clk 0:02:04]}  Qb5 {[%clk 0:01:14]} 26. Rab1 {[%clk 0:02:03]}  Rc8 {[%clk 0:00:50]} 27. g4 {[%clk 0:02:02]}  Rhf8 {[%clk 0:00:44]} 28. Bg3 {[%clk 0:02:01]}  Qe8 {[%clk 0:00:30]} 29. f4 {[%clk 0:01:57]}  Nd7 {[%clk 0:00:29]} 30. f5 {[%clk 0:01:56]}  Bg5 {[%clk 0:00:28]} 31. Nf3 {[%clk 0:01:56]}  Bxe3 {[%clk 0:00:24]} 32. Qxe3 {[%clk 0:01:55]}  f6 {[%clk 0:00:20]} 33. exf6 {[%clk 0:01:54]}  exf5 {[%clk 0:00:14]} 34. Qxe8 {[%clk 0:01:50]}  Rcxe8 {[%clk 0:00:15]} 35. fxg7 {[%clk 0:01:42]}  Rf7 {[%clk 0:00:15]} 36. g5 {[%clk 0:01:40]}  Rxg7 {[%clk 0:00:06]} 37. g6 {[%clk 0:01:40]}  Nf6 {[%clk 0:00:06]} 38. Be5 {[%clk 0:01:39]}  Re6 {[%clk 0:00:05]} 39. Rbe1 {[%clk 0:01:38]}  Nc6 {[%clk 0:00:01]} 40. Bb8+ {[%clk 0:01:38]} 1-0

[Event "December 5 Early 2023"]
[Site "https://www.chess.com"]
[Date "2023.12.05"]
[Round "2"]
[White "Oparin, Grigoriy"]
[Black "Kotlyar, Kirill"]
[Result "1-0"]
[Board "11"]
[TimeControl "180+1"]
[WhiteFideId "24125890"]
[BlackFideId "24145599"]
[WhiteElo "3052"]
[BlackElo "2638"]
[WhiteTeam "USA"]
[BlackTeam "RUS"]
[WhiteClock "0:02:09"]
[BlackClock "0:00:47"]

1. Nf3 {[%clk 0:03:00]}  Nf6 {[%clk 0:02:59]} 2. g3 {[%clk 0:03:01]}  g6 {[%clk 0:02:59]} 3. c4 {[%clk 0:03:02]}  Bg7 {[%clk 0:02:57]} 4. Bg2 {[%clk 0:03:02]}  O-O {[%clk 0:02:57]} 5. Nc3 {[%clk 0:03:02]}  d5 {[%clk 0:02:58]} 6. cxd5 {[%clk 0:03:02]}  Nxd5 {[%clk 0:02:58]} 7. d4 {[%clk 0:03:02]}  c5 {[%clk 0:02:53]} 8. O-O {[%clk 0:02:59]}  Nc6 {[%clk 0:02:49]} 9. Nxd5 {[%clk 0:02:49]}  Qxd5 {[%clk 0:02:43]} 10. Be3 {[%clk 0:02:49]}  Qh5 {[%clk 0:02:25]} 11. dxc5 {[%clk 0:02:48]}  Bxb2 {[%clk 0:02:24]} 12. Rb1 {[%clk 0:02:49]}  Bg7 {[%clk 0:02:25]} 13. Qa4 {[%clk 0:02:44]}  e5 {[%clk 0:02:05]} 14. Rfd1 {[%clk 0:02:38]}  Ne7 {[%clk 0:01:46]} 15. Qh4 {[%clk 0:02:13]}  Qxh4 {[%clk 0:01:23]} 16. Nxh4 {[%clk 0:02:14]}  Rb8 {[%clk 0:01:23]} 17. c6 {[%clk 0:02:15]}  Be6 {[%clk 0:01:09]} 18. Bxa7 {[%clk 0:02:14]}  Ra8 {[%clk 0:00:58]} 19. cxb7 {[%clk 0:02:14]}  Rxa7 {[%clk 0:00:53]} 20. b8=Q {[%clk 0:02:14]}  Rxb8 {[%clk 0:00:53]} 21. Rxb8+ {[%clk 0:02:15]}  Nc8 {[%clk 0:00:53]} 22. Rd8+ {[%clk 0:02:15]}  Bf8 {[%clk 0:00:54]} 23. Rdxc8 {[%clk 0:02:13]}  Bxc8 {[%clk 0:00:54]} 24. Rxc8 {[%clk 0:02:14]}  Rxa2 {[%clk 0:00:55]} 25. Bf1 {[%clk 0:02:13]}  Kg7 {[%clk 0:00:55]} 26. e3 {[%clk 0:02:12]}  e4 {[%clk 0:00:52]} 27. Ng2 {[%clk 0:02:10]}  Bb4 {[%clk 0:00:52]} 28. Rc4 {[%clk 0:02:09]}  Be1 {[%clk 0:00:47]} 29. Nxe1 {[%clk 0:02:09]} 1-0

[Event "December 5 Early 2023"]
[Site "https://www.chess.com"]
[Date "2023.12.05"]
[Round "2"]
[White "Gimenez Aguirre, Alejo Ismael"]
[Black "Tabatabaei, M. Amin"]
[Result "0-1"]
[Board "14"]
[TimeControl "180+1"]
[WhiteFideId "32041667"]
[BlackFideId "12521213"]
[WhiteElo "2631"]
[BlackElo "3035"]
[WhiteTeam "ARG"]
[BlackTeam "IRI"]
[WhiteClock "0:00:07"]
[BlackClock "0:01:14"]

1. e4 {[%clk 0:02:48]}  c6 {[%clk 0:02:56]} 2. d4 {[%clk 0:02:48]}  d5 {[%clk 0:02:55]} 3. Nd2 {[%clk 0:02:48]}  dxe4 {[%clk 0:02:55]} 4. Nxe4 {[%clk 0:02:48]}  Nf6 {[%clk 0:02:56]} 5. Nxf6+ {[%clk 0:02:48]}  exf6 {[%clk 0:02:56]} 6. Nf3 {[%clk 0:02:48]}  Bd6 {[%clk 0:02:56]} 7. Be3 {[%clk 0:02:48]}  O-O {[%clk 0:02:57]} 8. c3 {[%clk 0:02:48]}  Re8 {[%clk 0:02:58]} 9. Be2 {[%clk 0:02:43]}  Nd7 {[%clk 0:02:58]} 10. Qd2 {[%clk 0:02:40]}  Nf8 {[%clk 0:02:59]} 11. O-O {[%clk 0:02:33]}  Ng6 {[%clk 0:02:58]} 12. Rfe1 {[%clk 0:02:32]}  Bg4 {[%clk 0:02:57]} 13. h3 {[%clk 0:02:24]}  Be6 {[%clk 0:02:56]} 14. Bf1 {[%clk 0:02:23]}  Bc7 {[%clk 0:02:56]} 15. c4 {[%clk 0:02:18]}  Qd6 {[%clk 0:02:55]} 16. g3 {[%clk 0:02:08]}  Rad8 {[%clk 0:02:46]} 17. Rad1 {[%clk 0:02:06]}  h5 {[%clk 0:02:45]} 18. h4 {[%clk 0:01:55]}  Bg4 {[%clk 0:02:45]} 19. Bg2 {[%clk 0:01:55]}  a6 {[%clk 0:02:37]} 20. Rc1 {[%clk 0:01:53]}  f5 {[%clk 0:02:28]} 21. d5 {[%clk 0:01:23]}  f4 {[%clk 0:02:18]} 22. Bxf4 {[%clk 0:01:19]}  Nxf4 {[%clk 0:02:19]} 23. gxf4 {[%clk 0:01:00]}  Qxf4 {[%clk 0:02:17]} 24. Qxf4 {[%clk 0:00:57]}  Bxf4 {[%clk 0:02:18]} 25. Rxe8+ {[%clk 0:00:45]}  Rxe8 {[%clk 0:02:17]} 26. Re1 {[%clk 0:00:46]}  Rxe1+ {[%clk 0:02:09]} 27. Nxe1 {[%clk 0:00:46]}  c5 {[%clk 0:02:04]} 28. Nd3 {[%clk 0:00:44]}  Bd6 {[%clk 0:02:04]} 29. b4 {[%clk 0:00:24]}  b6 {[%clk 0:01:59]} 30. a3 {[%clk 0:00:19]}  Bf5 {[%clk 0:01:57]} 31. bxc5 {[%clk 0:00:17]}  bxc5 {[%clk 0:01:56]} 32. Nb2 {[%clk 0:00:08]}  Be7 {[%clk 0:01:55]} 33. Bf3 {[%clk 0:00:08]}  g6 {[%clk 0:01:55]} 34. Na4 {[%clk 0:00:08]}  Bc2 {[%clk 0:01:52]} 35. Nb6 {[%clk 0:00:08]}  Kf8 {[%clk 0:01:47]} 36. Kg2 {[%clk 0:00:07]}  Ke8 {[%clk 0:01:48]} 37. Kg3 {[%clk 0:00:07]}  Kd8 {[%clk 0:01:47]} 38. d6 {[%clk 0:00:06]}  Bxd6+ {[%clk 0:01:47]} 39. Kg2 {[%clk 0:00:07]}  Bd3 {[%clk 0:01:45]} 40. Bd5 {[%clk 0:00:05]}  f6 {[%clk 0:01:36]} 41. Bf7 {[%clk 0:00:03]}  Ke7 {[%clk 0:01:32]} 42. Bd5 {[%clk 0:00:03]}  Bc7 {[%clk 0:01:32]} 43. Na4 {[%clk 0:00:03]}  Kd6 {[%clk 0:01:32]} 44. Nb2 {[%clk 0:00:03]}  Bf5 {[%clk 0:01:32]} 45. Nd1 {[%clk 0:00:03]}  Ke5 {[%clk 0:01:31]} 46. Kf3 {[%clk 0:00:03]}  g5 {[%clk 0:01:31]} 47. hxg5 {[%clk 0:00:03]}  fxg5 {[%clk 0:01:32]} 48. Ne3 {[%clk 0:00:02]}  Bg6 {[%clk 0:01:32]} 49. Kg3 {[%clk 0:00:02]}  Kd4+ {[%clk 0:01:32]} 50. Kf3 {[%clk 0:00:03]}  g4+ {[%clk 0:01:31]} 51. Kg2 {[%clk 0:00:02]}  Bf4 {[%clk 0:01:31]} 52. Nf1 {[%clk 0:00:01]}  h4 {[%clk 0:01:28]} 53. f3 {[%clk 0:00:01]}  h3+ {[%clk 0:01:28]} 54. Kf2 {[%clk 0:00:01]}  gxf3 {[%clk 0:01:24]} 55. Kxf3 {[%clk 0:00:02]}  Bc7 {[%clk 0:01:22]} 56. Ng3 {[%clk 0:00:02]}  h2 {[%clk 0:01:17]} 57. Ne2+ {[%clk 0:00:03]}  Ke5 {[%clk 0:01:16]} 58. Kf2 {[%clk 0:00:04]}  Be4 {[%clk 0:01:13]} 59. Ng3 {[%clk 0:00:03]}  Bxd5 {[%clk 0:01:13]} 60. cxd5 {[%clk 0:00:04]}  Kxd5 {[%clk 0:01:14]} 61. Nh1 {[%clk 0:00:05]}  c4 {[%clk 0:01:14]} 62. Ke2 {[%clk 0:00:06]}  Kd4 {[%clk 0:01:14]} 63. Kd2 {[%clk 0:00:07]}  Bd8 {[%clk 0:01:13]} 64. Kc2 {[%clk 0:00:07]}  Bh4 {[%clk 0:01:14]} 65. a4 {[%clk 0:00:07]}  a5 {[%clk 0:01:14]} 66. Kd2 {[%clk 0:00:07]}  c3+ {[%clk 0:01:15]} 67. Kc2 {[%clk 0:00:08]}  Kc4 {[%clk 0:01:15]} 68. Kc1 {[%clk 0:00:09]}  Kb3 {[%clk 0:01:14]} 69. Kb1 {[%clk 0:00:09]}  Kxa4 {[%clk 0:01:14]} 70. Kc2 {[%clk 0:00:07]}  Kb4 {[%clk 0:01:14]} 0-1

[Event "December 5 Early 2023"]
[Site "https://www.chess.com"]
[Date "2023.12.05"]
[Round "2"]
[White "Marosi, Levente"]
[Black "Paravyan, David"]
[Result "1/2-1/2"]
[Board "17"]
[TimeControl "180+1"]
[WhiteFideId "747181"]
[BlackFideId "4194985"]
[WhiteElo "2620"]
[BlackElo "3005"]
[WhiteTeam "HUN"]
[BlackTeam "FID"]
[WhiteClock "0:01:05"]
[BlackClock "0:00:20"]

1. e4 {[%clk 0:03:00]}  e5 {[%clk 0:02:58]} 2. Nf3 {[%clk 0:02:59]}  Nf6 {[%clk 0:02:54]} 3. Nxe5 {[%clk 0:02:58]}  d6 {[%clk 0:02:53]} 4. Nf3 {[%clk 0:02:59]}  Nxe4 {[%clk 0:02:48]} 5. Nc3 {[%clk 0:02:59]}  Nxc3 {[%clk 0:02:45]} 6. dxc3 {[%clk 0:03:00]}  Be7 {[%clk 0:02:42]} 7. Be3 {[%clk 0:03:01]}  O-O {[%clk 0:02:42]} 8. Qd2 {[%clk 0:03:02]}  Nd7 {[%clk 0:02:42]} 9. O-O-O {[%clk 0:03:02]}  Nf6 {[%clk 0:02:42]} 10. Kb1 {[%clk 0:03:01]}  Re8 {[%clk 0:02:40]} 11. h3 {[%clk 0:03:01]}  Bd7 {[%clk 0:02:40]} 12. g4 {[%clk 0:02:59]}  Bc6 {[%clk 0:02:40]} 13. Bg2 {[%clk 0:03:00]}  Ne4 {[%clk 0:02:40]} 14. Qd3 {[%clk 0:02:54]}  Bf6 {[%clk 0:02:37]} 15. Rhg1 {[%clk 0:02:54]}  Nc5 {[%clk 0:02:13]} 16. Qd2 {[%clk 0:02:50]}  Ne4 {[%clk 0:02:13]} 17. Qd3 {[%clk 0:02:50]}  Nc5 {[%clk 0:02:13]} 18. Qd2 {[%clk 0:02:51]}  Qe7 {[%clk 0:02:00]} 19. g5 {[%clk 0:02:17]}  Ne4 {[%clk 0:01:57]} 20. Qd3 {[%clk 0:02:17]}  Be5 {[%clk 0:01:53]} 21. Nxe5 {[%clk 0:02:15]}  Qxe5 {[%clk 0:01:54]} 22. Bd4 {[%clk 0:02:14]}  Qf4 {[%clk 0:01:50]} 23. Bxe4 {[%clk 0:02:11]}  Bxe4 {[%clk 0:01:43]} 24. Qd2 {[%clk 0:02:00]}  Qxd2 {[%clk 0:01:42]} 25. Rxd2 {[%clk 0:02:01]}  Bf5 {[%clk 0:01:43]} 26. h4 {[%clk 0:02:01]}  Re4 {[%clk 0:01:42]} 27. Rh1 {[%clk 0:02:00]}  Rae8 {[%clk 0:01:41]} 28. Be3 {[%clk 0:01:54]}  b6 {[%clk 0:01:40]} 29. Rd4 {[%clk 0:01:52]}  Rxd4 {[%clk 0:01:39]} 30. cxd4 {[%clk 0:01:53]}  Re4 {[%clk 0:01:38]} 31. Kc1 {[%clk 0:01:52]}  Kf8 {[%clk 0:01:35]} 32. Kd2 {[%clk 0:01:53]}  Bg4 {[%clk 0:01:32]} 33. f4 {[%clk 0:01:43]}  Bh5 {[%clk 0:01:30]} 34. Rf1 {[%clk 0:01:40]}  f5 {[%clk 0:01:26]} 35. c3 {[%clk 0:01:39]}  Ke7 {[%clk 0:01:23]} 36. Kd3 {[%clk 0:01:39]}  Kd7 {[%clk 0:01:20]} 37. Re1 {[%clk 0:01:38]}  Bf7 {[%clk 0:01:19]} 38. b3 {[%clk 0:01:38]}  c5 {[%clk 0:01:02]} 39. Bd2 {[%clk 0:01:32]}  d5 {[%clk 0:01:00]} 40. Rxe4 {[%clk 0:01:29]}  dxe4+ {[%clk 0:00:39]} 41. Ke3 {[%clk 0:01:30]}  c4 {[%clk 0:00:38]} 42. b4 {[%clk 0:01:17]}  Ke6 {[%clk 0:00:38]} 43. Kf2 {[%clk 0:01:13]}  Be8 {[%clk 0:00:38]} 44. Be3 {[%clk 0:01:11]}  Kf7 {[%clk 0:00:38]} 45. Kg3 {[%clk 0:01:11]}  Ke6 {[%clk 0:00:37]} 46. Kf2 {[%clk 0:01:11]}  Kd5 {[%clk 0:00:34]} 47. Ke1 {[%clk 0:01:11]}  Kc6 {[%clk 0:00:31]} 48. Kd2 {[%clk 0:01:09]}  g6 {[%clk 0:00:20]} 49. Kc2 {[%clk 0:01:05]}  Kd5 {[%clk 0:00:20]} 1/2-1/2